fUSD/lending_fUSD_20260408
["ID","MTS","AMOUNT","RATE_DAILY","PERIOD"]
[420107655,1775682640913,-600.0,0.00012649,2]
[420107656,1775682640923,-200.0,0.00012689,2]
[420107657,1775682640933,-1140.85523569,0.00012689,2]
[420107658,1775682640942,-13920.32217218,0.00012867,2]
[420107659,1775682640952,-200.0,0.00012904,2]
[420107660,1775682640962,-217.0,0.00012904,2]
[420107661,1775682640971,-273.0,0.00012904,2]
[420107662,1775682640981,-250.0,0.00012904,2]
[420107663,1775682640992,-203.119,0.00012904,2]
[420107664,1775682641002,-250.0,0.00012904,2]
[420107665,1775682641011,-208.195,0.00012904,2]
[420107666,1775682641021,-250.0,0.00012904,2]
[420107667,1775682641030,-163.308,0.00012904,2]
[420107668,1775682641040,-250.0,0.00012904,2]
[420107669,1775682641050,-155.122,0.00012904,2]
[420107670,1775682641060,-193.665,0.00012904,2]
[420107671,1775682641069,-166.211,0.00012904,2]
[420107672,1775682641079,-250.0,0.00012904,2]
[420107673,1775682641089,-215.048,0.00012904,2]
[420107674,1775682641099,-180.0,0.00012904,2]
[420107675,1775682641108,-3524.0,0.00012904,2]
[420107676,1775682641117,-1363.382,0.00012904,2]
[420107677,1775682641127,-631.205,0.00012904,2]
[420107678,1775682641137,-277.201,0.00012904,2]
[420107679,1775682641147,-1269.291,0.00012904,2]
[420107680,1775682641157,-1217.0,0.00012904,2]
[420107681,1775682641167,-926.0,0.00012904,2]
[420107682,1775682641178,-278.98,0.0001294,2]
[420107683,1775682641189,-187.06446779,0.00012967,2]
[420107684,1775682641199,-100103.49272567,0.00012999,2]
[420107685,1775682641209,-1000.0,0.00013048,2]
[420107686,1775682641219,-1000.0,0.00013048,2]
[420107687,1775682641229,-501.0,0.000131,2]
[420107688,1775682641239,-1000.0,0.00013115,2]
[420107689,1775682641249,-1000.0,0.00013121,2]
[420107690,1775682641259,-150.88467267,0.00013151,2]
[420107691,1775682641269,-160.5097946,0.00013151,2]
[420107692,1775682641279,-150.0,0.00013151,2]
[420107693,1775682641289,-150.0,0.00013151,2]
[420107694,1775682641299,-150.0,0.00013151,2]
[420107695,1775682641308,-150.0,0.00013151,2]
[420107696,1775682641317,-150.0,0.00013151,2]
[420107697,1775682641327,-150.0,0.00013151,2]
[420107698,1775682641337,-150.0,0.00013151,2]
[420107699,1775682641347,-150.0,0.00013151,2]
[420107700,1775682641357,-176.0009961,0.00013151,2]
[420107701,1775682641367,-150.0,0.00013151,2]
[420107702,1775682641376,-150.0,0.00013151,2]
[420107703,1775682641387,-185.23665201,0.00013151,2]
[420107704,1775682641396,-150.0,0.00013151,2]
[420107705,1775682641406,-150.0,0.00013151,2]
[420107706,1775682641417,-150.0,0.00013151,2]
[420107707,1775682641427,-150.0,0.00013151,2]
[420107708,1775682641437,-286.3666211,0.00013151,2]
[420107709,1775682641447,-583.0,0.00013151,2]
[420107710,1775682641456,-583.0,0.00013151,2]
[420107711,1775682641466,-583.0,0.00013151,2]
[420107712,1775682641476,-583.0,0.00013151,2]
[420107713,1775682641486,-583.0,0.00013151,2]
[420107714,1775682641496,-583.0,0.00013151,2]
[420107715,1775682641507,-583.0,0.00013151,2]
[420107716,1775682641517,-583.0,0.00013151,2]
[420107717,1775682641527,-583.0,0.00013151,2]
[420107718,1775682641537,-583.0,0.00013151,2]
[420107719,1775682641547,-583.0,0.00013151,2]
[420107720,1775682641557,-583.0,0.00013151,2]
[420107721,1775682641566,-500.0,0.00013151,2]
[420107722,1775682641577,-500.0,0.00013151,2]
[420107724,1775682641587,-500.0,0.00013151,2]
[420107725,1775682641597,-500.0,0.00013151,2]
[420107726,1775682641606,-152.12238144,0.00013151,2]
[420107727,1775682641616,-583.0,0.00013151,2]
[420107728,1775682641626,-583.0,0.00013151,2]
[420107729,1775682641635,-583.0,0.00013151,2]
[420107730,1775682641645,-583.0,0.00013151,2]
[420107731,1775682641655,-583.0,0.00013151,2]
[420107732,1775682641664,-583.0,0.00013151,2]
[420107733,1775682641675,-583.0,0.00013151,2]
[420107734,1775682641684,-583.0,0.00013151,2]
[420107735,1775682641697,-583.0,0.00013151,2]
[420107736,1775682641707,-583.0,0.00013151,2]
[420107737,1775682641717,-583.0,0.00013151,2]
[420107738,1775682641728,-605.0,0.00013151,2]
[420107739,1775682641738,-500.0,0.00013151,2]
[420107740,1775682641748,-500.0,0.00013151,2]
[420107741,1775682641758,-500.0,0.00013151,2]
[420107742,1775682641768,-500.0,0.00013151,2]
[420107743,1775682641779,-500.0,0.00013151,2]
[420107744,1775682641789,-500.0,0.00013151,2]
[420107745,1775682641799,-500.0,0.00013151,2]
[420107746,1775682641808,-274.1065221,0.00013151,2]
[420107747,1775682641818,-500.0,0.00013151,2]
[420107748,1775682641828,-500.0,0.00013151,2]
[420107749,1775682641837,-500.0,0.00013151,2]
[420107750,1775682641847,-500.0,0.00013151,2]
[420107751,1775682641856,-500.0,0.00013151,2]
[420107752,1775682641866,-500.0,0.00013151,2]
[420107753,1775682641876,-500.0,0.00013151,2]
[420107754,1775682641885,-361.74732129,0.00013151,2]
[420107755,1775682641894,-500.0,0.00013151,2]
[420107756,1775682641904,-500.0,0.00013151,2]
[420107757,1775682641913,-500.0,0.00013151,2]
[420107758,1775682641923,-500.0,0.00013151,2]
[420107759,1775682641932,-500.0,0.00013151,2]
[420107760,1775682641942,-350.0,0.00013151,2]
[420107761,1775682641951,-500.0,0.00013151,2]
[420107762,1775682641961,-150.0,0.00013151,2]
[420107763,1775682641970,-272.94970253,0.00013151,2]
[420107764,1775682641979,-150.0,0.00013151,2]
[420107765,1775682641989,-150.0,0.00013151,2]
[420107766,1775682641998,-150.0,0.00013151,2]
[420107767,1775682642007,-150.0,0.00013151,2]
[420107768,1775682642017,-208.37237059,0.00013151,2]
[420107769,1775682642027,-245.51112262,0.00013151,2]
[420107770,1775682642036,-500.0,0.00013151,2]
[420107771,1775682642045,-500.0,0.00013151,2]
[420107772,1775682642055,-500.0,0.00013151,2]
[420107773,1775682642065,-500.0,0.00013151,2]
[420107774,1775682642076,-500.0,0.00013151,2]
[420107775,1775682642085,-500.0,0.00013151,2]
[420107776,1775682642094,-500.0,0.00013151,2]
[420107777,1775682642103,-500.0,0.00013151,2]
[420107778,1775682642111,-500.0,0.00013151,2]
[420107779,1775682642120,-500.0,0.00013151,2]
[420107780,1775682642129,-500.0,0.00013151,2]
[420107781,1775682642137,-226.83643244,0.00013151,2]
[420107782,1775682642147,-500.0,0.00013151,2]
[420107783,1775682642157,-150.0,0.00013151,2]
[420107784,1775682642166,-500.0,0.00013151,2]
[420107785,1775682642177,-381.23774932,0.00013151,2]
[420107786,1775682642187,-500.0,0.00013151,2]
[420107787,1775682642197,-500.0,0.00013151,2]
[420107788,1775682642206,-500.0,0.00013151,2]
[420107789,1775682642217,-500.0,0.00013151,2]
[420107790,1775682642226,-500.0,0.00013151,2]
[420107791,1775682642236,-500.0,0.00013151,2]
[420107792,1775682642246,-500.0,0.00013151,2]
[420107793,1775682642255,-595.10163207,0.00013151,2]
[420107794,1775682642266,-500.0,0.00013151,2]
[420107795,1775682642275,-500.0,0.00013151,2]
[420107796,1775682642285,-500.0,0.00013151,2]
[420107797,1775682642295,-500.0,0.00013151,2]
[420107798,1775682642304,-500.0,0.00013151,2]
[420107799,1775682642314,-500.0,0.00013151,2]
[420107800,1775682642323,-500.0,0.00013151,2]
[420107801,1775682642333,-341.376807,0.00013151,2]
[420107802,1775682642344,-500.0,0.00013151,2]
[420107803,1775682642354,-500.0,0.00013151,2]
[420107804,1775682642364,-500.0,0.00013151,2]
[420107805,1775682642374,-500.0,0.00013151,2]
[420107806,1775682642383,-500.0,0.00013151,2]
[420107807,1775682642394,-500.0,0.00013151,2]
[420107808,1775682642405,-500.0,0.00013151,2]
[420107809,1775682642415,-500.0,0.00013151,2]
[420107810,1775682642426,-287.13980161,0.00013151,2]
[420107811,1775682642437,-165.86332065,0.00013151,2]
[420107812,1775682642447,-150.0,0.00013151,2]
[420107813,1775682642457,-150.0,0.00013151,2]
[420107814,1775682642467,-223.44111523,0.00013151,2]
[420107815,1775682642478,-172.8155,0.000132,2]
[420107816,1775682642493,-200.0,0.00013237,2]
[420107817,1775682642504,-36516.46239318,0.00013322,2]
[420107818,1775682642515,-13920.32217218,0.00013322,2]
[420107819,1775682642527,-701.5812404,0.00013555,2]
[420107820,1775682642538,-1500.0,0.00013596,2]
[420107821,1775682642549,-1513.3582935,0.00013596,2]
[420107822,1775682642560,-233.66702618,0.00013663,2]
[420107823,1775682642571,-1500.0,0.00013669,2]
[420107824,1775682642583,-150.0,0.00013672,2]
[420107825,1775682642594,-500.0,0.00013698,2]
[420107826,1775682642605,-500.0,0.00013698,2]
[420107827,1775682642615,-500.0,0.00013698,2]
[420107828,1775682642625,-500.0,0.00013698,2]
[420107829,1775682642635,-500.0,0.00013698,2]
[420107830,1775682642646,-500.0,0.00013698,2]
[420107831,1775682642656,-500.0,0.00013698,2]
[420107832,1775682642667,-500.0,0.00013698,2]
[420107833,1775682642677,-500.0,0.00013698,2]
[420107834,1775682642688,-500.0,0.00013698,2]
[420107835,1775682642698,-500.0,0.00013698,2]
[420107836,1775682642709,-500.0,0.00013698,2]
[420107837,1775682642721,-454.40497159,0.00013698,2]
[420107838,1775682642731,-500.0,0.00013698,2]
[420107839,1775682642742,-500.0,0.00013698,2]
[420107840,1775682642753,-500.0,0.00013698,2]
[420107841,1775682642763,-500.0,0.00013698,2]
[420107842,1775682642774,-500.0,0.00013698,2]
[420107843,1775682642784,-500.0,0.00013698,2]
[420107844,1775682642795,-500.0,0.00013698,2]
[420107845,1775682642806,-500.0,0.00013698,2]
[420107846,1775682642816,-500.0,0.00013698,2]
[420107847,1775682642827,-500.0,0.00013698,2]
[420107848,1775682642838,-500.0,0.00013698,2]
[420107849,1775682642849,-500.0,0.00013698,2]
[420107850,1775682642859,-500.0,0.00013698,2]
[420107851,1775682642872,-500.0,0.00013698,2]
[420107852,1775682642882,-500.0,0.00013698,2]
[420107853,1775682642893,-500.0,0.00013698,2]
[420107854,1775682642903,-500.0,0.00013698,2]
[420107855,1775682642914,-500.0,0.00013698,2]
[420107856,1775682642925,-500.0,0.00013698,2]
[420107857,1775682642936,-500.0,0.00013698,2]
[420107858,1775682642946,-500.0,0.00013698,2]
[420107859,1775682642957,-500.0,0.00013698,2]
[420107860,1775682642967,-500.0,0.00013698,2]
[420107861,1775682642978,-500.0,0.00013698,2]
[420107863,1775682642989,-500.0,0.00013698,2]
[420107864,1775682643000,-500.0,0.00013698,2]
[420107865,1775682643011,-500.0,0.00013698,2]
[420107866,1775682643022,-500.0,0.00013698,2]
[420107867,1775682643034,-500.0,0.00013698,2]
[420107868,1775682643045,-500.0,0.00013698,2]
[420107869,1775682643056,-500.0,0.00013698,2]
[420107870,1775682643068,-500.0,0.00013698,2]
[420107871,1775682643079,-500.0,0.00013698,2]
[420107872,1775682643091,-500.0,0.00013698,2]
[420107873,1775682643104,-500.0,0.00013698,2]
[420107874,1775682643114,-500.0,0.00013698,2]
[420107875,1775682643126,-500.0,0.00013698,2]
[420107876,1775682643138,-500.0,0.00013698,2]
[420107877,1775682643150,-500.0,0.00013698,2]
[420107878,1775682643161,-500.0,0.00013698,2]
[420107879,1775682643172,-500.0,0.00013698,2]
[420107880,1775682643183,-500.0,0.00013698,2]
[420107881,1775682643195,-500.03954585,0.00013698,2]
[420107882,1775682643206,-500.0,0.00013698,2]
[420107883,1775682643217,-500.0,0.00013698,2]
[420107884,1775682643229,-500.0,0.00013698,2]
[420107885,1775682643239,-500.0,0.00013698,2]
[420107886,1775682643250,-500.14075642,0.00013698,2]
[420107887,1775682643262,-500.0,0.00013698,2]
[420107888,1775682643273,-500.0,0.00013698,2]
[420107889,1775682643284,-500.0,0.00013698,2]
[420107890,1775682643294,-500.0,0.00013698,2]
[420107891,1775682643305,-500.0,0.00013698,2]
[420107892,1775682643315,-500.0,0.00013698,2]
[420107893,1775682643325,-500.0,0.00013698,2]
[420107894,1775682643336,-500.0,0.00013698,2]
[420107895,1775682643346,-500.0,0.00013698,2]
[420107896,1775682643357,-500.0,0.00013698,2]
[420107897,1775682643368,-500.0,0.00013698,2]
[420107898,1775682643379,-500.0,0.00013698,2]
[420107899,1775682643389,-500.0,0.00013698,2]
[420107900,1775682643400,-500.0,0.00013698,2]
[420107901,1775682643412,-500.0,0.00013698,2]
[420107902,1775682643423,-500.0,0.00013698,2]
[420107903,1775682643434,-500.0,0.00013698,2]
[420107904,1775682643445,-500.0,0.00013698,2]
[420107905,1775682643455,-500.0,0.00013698,2]
[420107906,1775682643466,-514.41880912,0.00013698,2]
[420107907,1775682643477,-500.0,0.00013698,2]
[420107908,1775682643488,-500.0,0.00013698,2]
[420107909,1775682643498,-500.0,0.00013698,2]
[420107910,1775682643511,-500.0,0.00013698,2]
[420107911,1775682643523,-500.0,0.00013698,2]
[420107912,1775682643534,-500.0,0.00013698,2]
[420107913,1775682643545,-500.0,0.00013698,2]
[420107914,1775682643556,-500.0,0.00013698,2]
[420107915,1775682643568,-500.0,0.00013698,2]
[420107916,1775682643581,-500.0,0.00013698,2]
[420107917,1775682643592,-500.0,0.00013698,2]
[420107918,1775682643603,-500.0,0.00013698,2]
[420107919,1775682643613,-500.0,0.00013698,2]
[420107920,1775682643625,-500.0,0.00013698,2]
[420107921,1775682643636,-504.74596653,0.00013698,2]
[420107922,1775682643647,-500.0,0.00013698,2]
[420107923,1775682643657,-500.0,0.00013698,2]
[420107924,1775682643670,-500.0,0.00013698,2]
[420107925,1775682643681,-500.0,0.00013698,2]
[420107926,1775682643692,-500.0,0.00013698,2]
[420107927,1775682643704,-500.0,0.00013698,2]
[420107928,1775682643716,-500.0,0.00013698,2]
[420107929,1775682643727,-500.0,0.00013698,2]
[420107930,1775682643740,-500.0,0.00013698,2]
[420107931,1775682643751,-323.69736377,0.00013698,2]
[420107932,1775682643762,-500.0,0.00013698,2]
[420107933,1775682643773,-500.0,0.00013698,2]
[420107934,1775682643784,-500.0,0.00013698,2]
[420107935,1775682643795,-500.0,0.00013698,2]
[420107936,1775682643806,-500.0,0.00013698,2]
[420107937,1775682643817,-500.0,0.00013698,2]
[420107938,1775682643828,-500.0,0.00013698,2]
[420107939,1775682643840,-500.0,0.00013698,2]
[420107940,1775682643850,-500.0,0.00013698,2]
[420107941,1775682643861,-500.0,0.00013698,2]
[420107942,1775682643872,-500.0,0.00013698,2]
[420107943,1775682643883,-500.0,0.00013698,2]
[420107944,1775682643894,-500.0,0.00013698,2]
[420107945,1775682643905,-500.0,0.00013698,2]
[420107946,1775682643916,-500.0,0.00013698,2]
[420107947,1775682643928,-500.0,0.00013698,2]
[420107948,1775682643939,-500.0,0.00013698,2]
[420107949,1775682643950,-500.0,0.00013698,2]
[420107950,1775682643962,-500.0,0.00013698,2]
[420107951,1775682643973,-500.0,0.00013698,2]
[420107952,1775682643984,-500.0,0.00013698,2]
[420107953,1775682643995,-500.0,0.00013698,2]
[420107954,1775682644007,-500.0,0.00013698,2]
[420107955,1775682644019,-500.0,0.00013698,2]
[420107956,1775682644030,-500.0,0.00013698,2]
[420107957,1775682644042,-500.0,0.00013698,2]
[420107958,1775682644053,-500.0,0.00013698,2]
[420107959,1775682644064,-500.0,0.00013698,2]
[420107960,1775682644074,-500.0,0.00013698,2]
[420107961,1775682644085,-500.0,0.00013698,2]
[420107963,1775682644097,-500.0,0.00013698,2]
[420107965,1775682644107,-500.0,0.00013698,2]
[420107966,1775682644117,-500.0,0.00013698,2]
[420107967,1775682644127,-500.0,0.00013698,2]
[420107968,1775682644137,-500.0,0.00013698,2]
[420107969,1775682644148,-500.0,0.00013698,2]
[420107970,1775682644159,-553.39225555,0.00013698,2]
[420107971,1775682644170,-500.0,0.00013698,2]
[420107972,1775682644180,-500.0,0.00013698,2]
[420107973,1775682644191,-500.0,0.00013698,2]
[420107974,1775682644203,-500.0,0.00013698,2]
[420107975,1775682644213,-500.0,0.00013698,2]
[420107976,1775682644225,-500.0,0.00013698,2]
[420107977,1775682644236,-150.0,0.00013699,2]
[420107978,1775682644247,-150.0,0.00013699,2]
[420107979,1775682644258,-150.0,0.00013699,2]
[420107980,1775682644269,-150.0,0.00013699,2]
[420107981,1775682644280,-150.0,0.00013699,2]
[420107982,1775682644291,-2138.0,0.00013699,2]
[420107983,1775682644302,-150.0,0.00013699,2]
[420107984,1775682644314,-166.66,0.00013699,2]
[420107985,1775682644325,-309.61,0.00013699,2]
[420107986,1775682644336,-211.57,0.00013699,2]
[420107987,1775682644347,-152.37,0.00013699,2]
[420107988,1775682644358,-350.72964164,0.00013699,2]
[420107989,1775682644369,-1778.0,0.00013699,2]
[420107990,1775682644380,-1778.0,0.00013699,2]
[420107991,1775682644390,-1778.0,0.00013699,2]
[420107992,1775682644401,-1778.0,0.00013699,2]
[420107993,1775682644412,-1778.0,0.00013699,2]
[420107994,1775682644423,-1778.0,0.00013699,2]
[420107995,1775682644434,-1778.0,0.00013699,2]
[420107996,1775682644445,-1778.0,0.00013699,2]
[420107997,1775682644456,-1778.0,0.00013699,2]
[420107998,1775682644467,-1778.0,0.00013699,2]
[420107999,1775682644478,-1778.0,0.00013699,2]
[420108000,1775682644489,-1778.0,0.00013699,2]
[420108001,1775682644500,-1778.0,0.00013699,2]
[420108002,1775682644511,-1778.0,0.00013699,2]
[420108003,1775682644522,-1778.0,0.00013699,2]
[420108004,1775682644533,-1778.0,0.00013699,2]
[420108005,1775682644543,-1778.0,0.00013699,2]
[420108006,1775682644553,-1778.0,0.00013699,2]
[420108007,1775682644563,-1778.0,0.00013699,2]
[420108008,1775682644573,-1778.0,0.00013699,2]
[420108009,1775682644584,-1778.0,0.00013699,2]
[420108010,1775682644593,-1778.0,0.00013699,2]
[420108011,1775682644605,-1778.0,0.00013699,2]
[420108012,1775682644615,-1797.43616336,0.00013699,2]
[420108013,1775682644625,-187.06446779,0.000137,2]
[420108014,1775682644636,-786.02,0.00013732,2]
[420108015,1775682644646,-433.0,0.0001374,2]
[420108016,1775682644656,-150.0,0.00013763,2]
[420108017,1775682644666,-36516.46239318,0.00013778,2]
[420108018,1775682644676,-13920.32217218,0.00013778,2]
[420108019,1775682644686,-200.0,0.00013785,2]
[420108020,1775682644697,-150.0,0.00013792,2]
[420108021,1775682644707,-1700.0,0.00013808,2]
[420108022,1775682644717,-2835.5,0.00013808,2]
[420108023,1775682644727,-2835.5,0.00013808,2]
[420108024,1775682644739,-2835.5,0.00013808,2]
[420108025,1775682644750,-2835.5,0.00013808,2]
[420108026,1775682644761,-2835.5,0.00013808,2]
[420108027,1775682644771,-3000.0,0.00013808,2]
[420108028,1775682644782,-1000.0,0.00013826,2]
[420108029,1775682644793,-200.0,0.00013831,2]
[420108030,1775682644804,-166.66,0.00013836,2]
[420108031,1775682644815,-150.0,0.00013863,2]
[420108032,1775682644825,-587.0,0.00013871,2]
[420108033,1775682644836,-2351.0,0.00013913,2]
[420108034,1775682644847,-150.0,0.00013956,2]
[420108035,1775682644858,-160.0,0.00013962,7]
[420108036,1775682644869,-2285.834848,0.00013962,7]
[420108037,1775682644880,-4411.669697,0.00013962,7]
[420108038,1775682644890,-160.0,0.00013962,2]
[420108039,1775682644900,-398.959166,0.00013962,2]
[420108040,1775682644912,-637.918333,0.00013962,2]
[420108041,1775682644922,-150.0,0.00013973,2]
[420108042,1775682644932,-150.0,0.00013973,2]
[420108043,1775682644942,-150.0,0.00013973,2]
[420108044,1775682645308,-150.0,0.00013973,2]
[420108045,1775682645322,-166.66,0.00013973,2]
[420108046,1775682645332,-150.0,0.00013984,2]
[420108047,1775682645343,-160.0,0.00013994,7]
[420108048,1775682645354,-568.299206,0.00013994,7]
[420108049,1775682645364,-976.598413,0.00013994,7]
[420108050,1775682645374,-786.02,0.00014006,2]
[420108051,1775682645385,-160.0,0.00014041,2]
[420108052,1775682645395,-166.66,0.0001411,2]
[420108053,1775682645406,-1576.04025023,0.00014144,2]
[420108054,1775682645416,-501.0,0.00014162,2]
[420108055,1775682645426,-150.0,0.00014204,2]
[420108056,1775682645438,-663.0,0.00014206,5]
[420108057,1775682645448,-713.60218691,0.00014217,2]
[420108059,1775682645458,-36516.46239318,0.00014233,2]
[420108060,1775682645468,-13920.32217218,0.00014233,2]
[420108061,1775682645478,-812.06,0.00014245,2]
[420108062,1775682645489,-166.66,0.00014247,2]
[420108063,1775682645499,-150.0,0.00014247,2]
[420108064,1775682645509,-150.0,0.00014247,2]
[420108065,1775682645520,-150.0,0.00014247,2]
[420108066,1775682645530,-150.0,0.00014247,2]
[420108067,1775682645541,-150.0,0.0001427,2]
[420108068,1775682645553,-786.02,0.0001428,2]
[420108069,1775682645564,-150.0,0.00014293,2]
[420108070,1775682645575,-1233.59,0.00014318,2]
[420108071,1775682645586,-200.0,0.00014333,2]
[420108072,1775682645596,-1000.0,0.00014335,2]
[420108073,1775682645606,-166.66,0.00014384,2]
[420108074,1775682645617,-985.91,0.00014384,2]
[420108075,1775682645626,-271.366023,0.00014395,7]
[420108076,1775682645636,-278.453406,0.00014395,7]
[420108077,1775682645646,-319.0,0.000144,2]
[420108078,1775682645656,-1573.0,0.000144,2]
[420108079,1775682645667,-150.0,0.00014415,2]
[420108080,1775682645677,-261.514915,0.00014416,2]
[420108081,1775682645688,-187.06446779,0.00014433,2]
[420108082,1775682645698,-812.06,0.00014477,2]
[420108083,1775682645709,-662.26960582,0.00014492,4]
[420108084,1775682645719,-199.1014,0.000145,2]
[420108085,1775682645731,-786.02,0.00014554,2]
[420108086,1775682645742,-985.91,0.00014658,2]
[420108087,1775682645752,-3117.047521,0.0001466,7]
[420108088,1775682645765,-816.052841,0.0001466,2]
[420108089,1775682645775,-36516.46239318,0.00014689,2]
[420108091,1775682645786,-13920.32217218,0.00014689,2]
[420108092,1775682645797,-774.953463,0.00014694,7]
[420108094,1775682645807,-812.06,0.00014709,2]
[420108096,1775682645817,-1573.0,0.0001472,2]
[420108097,1775682645827,-1573.0,0.0001472,2]
[420108099,1775682645838,-292.12269912,0.00014758,2]
[420108101,1775682645848,-255.20839086,0.00014758,2]
[420108102,1775682645858,-2000.0,0.000148,2]
[420108103,1775682645869,-500.0,0.00014812,2]
[420108104,1775682645881,-2000.0,0.00014812,2]
[420108105,1775682645892,-786.02,0.00014828,2]
[420108106,1775682645902,-278.98,0.00014838,2]
[420108107,1775682645912,-200.0,0.00014881,2]
[420108108,1775682645923,-18300.0,0.000149,5]
[420108109,1775682645934,-5000.0,0.00014915,2]
[420108110,1775682645945,-5000.0,0.00014915,2]
[420108111,1775682645956,-500.0,0.00014931,2]
[420108112,1775682645967,-883.72,0.00014932,2]
[420108113,1775682645978,-812.06,0.00014941,2]
[420108114,1775682645989,-578.20924308,0.00014975,2]
[420108115,1775682646001,-500.0,0.00014975,2]
[420108116,1775682646013,-601.3376128,0.00014975,2]
[420108117,1775682646024,-1191.11104075,0.00014975,2]
[420108118,1775682646035,-174.61919141,0.00014975,2]
[420108119,1775682646046,-200.0,0.00014975,2]
[420108120,1775682646057,-151.0,0.00014975,2]
[420108121,1775682646068,-151.0,0.00014975,2]
[420108122,1775682646078,-151.0,0.00014975,2]
[420108123,1775682646089,-158.44511549,0.00014975,2]
[420108124,1775682646100,-7965.41053268,0.00014975,2]
[420108125,1775682646110,-743.50770149,0.00014975,2]
[420108126,1775682646121,-174.61919141,0.00014975,2]
[420108127,1775682646131,-1500.0,0.00014975,2]
[420108128,1775682646143,-1500.0,0.00014975,2]
[420108129,1775682646153,-1500.0,0.00014975,2]
[420108130,1775682646164,-1500.0,0.00014975,2]
[420108131,1775682646174,-1500.0,0.00014975,2]
[420108132,1775682646185,-1500.0,0.00014975,2]
[420108133,1775682646195,-1500.0,0.00014975,2]
[420108134,1775682646207,-160.0,0.00014975,2]
[420108135,1775682646225,-174.61919141,0.00014975,2]
[420108136,1775682646235,-174.61919141,0.00014975,2]
[420108137,1775682646246,-578.20924308,0.00014975,2]
[420108138,1775682646256,-151.0,0.00014975,2]
[420108139,1775682646267,-285.62441693,0.00014975,2]
[420108140,1775682646278,-170.0,0.00014975,2]
[420108141,1775682646289,-170.0,0.00014975,2]
[420108142,1775682646300,-1500.0,0.00014975,2]
[420108143,1775682646312,-170.0,0.00014975,2]
[420108144,1775682646322,-1532.75885711,0.00014975,2]
[420108145,1775682646333,-170.0,0.00014975,2]
[420108146,1775682646343,-170.0,0.00014975,2]
[420108147,1775682646355,-170.0,0.00014975,2]
[420108148,1775682646366,-170.0,0.00014975,2]
[420108149,1775682646377,-170.0,0.00014975,2]
[420108150,1775682646387,-170.0,0.00014975,2]
[420108151,1775682646398,-170.0,0.00014975,2]
[420108152,1775682646410,-170.0,0.00014975,2]
[420108153,1775682646426,-170.0,0.00014975,2]
[420108154,1775682646437,-170.0,0.00014975,2]
[420108155,1775682646448,-170.0,0.00014975,2]
[420108156,1775682646459,-170.0,0.00014975,2]
[420108157,1775682646469,-170.0,0.00014975,2]
[420108158,1775682646479,-500.0,0.00015,2]
[420108159,1775682646489,-500.0,0.00015,2]
[420108160,1775682646500,-500.0,0.00015,2]
[420108161,1775682646512,-2756.92717347,0.00015,2]
[420108162,1775682646523,-500.0,0.00015,2]
[420108163,1775682646534,-501.46029237,0.00015,2]
[420108164,1775682646544,-500.0,0.00015,2]